[Event "Titled Tuesday Blitz November 22 Late 2022"]
[White "Nasuta, Grzegorz"]
[Black "Dylag, Emilia"]
[WhiteFideId "1141686"]
[BlackFideId "21805172"]
[WhiteElo "2440"]
[BlackElo "1878"]
[Result "0-1"]
[Round "05"]
[TimeControl "180+1"]
[Date "2022.11.23"]
[WhiteClock "0:00:02"]
[BlackClock "0:00:22"]

1. e4 {[%clk 0:02:55]}  e5 {[%clk 0:02:59]} 2. Nf3 {[%clk 0:02:49]}  Nc6 {[%clk 0:03:00]} 3. d4 {[%clk 0:02:44]}  exd4 {[%clk 0:02:59]} 4. Nxd4 {[%clk 0:02:45]}  Nf6 {[%clk 0:02:59]} 5. Nc3 {[%clk 0:02:35]}  Bb4 {[%clk 0:02:59]} 6. Nxc6 {[%clk 0:02:36]}  bxc6 {[%clk 0:03:00]} 7. Bd3 {[%clk 0:02:36]}  d5 {[%clk 0:03:01]} 8. exd5 {[%clk 0:02:35]}  O-O {[%clk 0:03:01]} 9. O-O {[%clk 0:02:35]}  cxd5 {[%clk 0:03:01]} 10. h3 {[%clk 0:02:30]}  Rb8 {[%clk 0:02:59]} 11. Qf3 {[%clk 0:02:29]}  c6 {[%clk 0:02:57]} 12. Ne2 {[%clk 0:02:28]}  Bd6 {[%clk 0:02:52]} 13. b3 {[%clk 0:02:27]}  Re8 {[%clk 0:02:51]} 14. Bf4 {[%clk 0:02:27]}  Be5 {[%clk 0:02:48]} 15. Rad1 {[%clk 0:02:22]}  Qc7 {[%clk 0:02:45]} 16. c4 {[%clk 0:02:14]}  Bb7 {[%clk 0:02:36]} 17. Bxe5 {[%clk 0:02:01]}  Qxe5 {[%clk 0:02:33]} 18. Qf4 {[%clk 0:01:32]}  Ba6 {[%clk 0:02:18]} 19. Qxe5 {[%clk 0:01:21]}  Rxe5 {[%clk 0:02:17]} 20. Nd4 {[%clk 0:01:21]}  Rc8 {[%clk 0:02:08]} 21. c5 {[%clk 0:00:30]}  Bxd3 {[%clk 0:02:01]} 22. Rxd3 {[%clk 0:00:31]}  a5 {[%clk 0:01:46]} 23. a3 {[%clk 0:00:23]}  Nd7 {[%clk 0:01:38]} 24. b4 {[%clk 0:00:22]}  axb4 {[%clk 0:01:28]} 25. axb4 {[%clk 0:00:23]}  Re4 {[%clk 0:01:28]} 26. f3 {[%clk 0:00:22]}  Re7 {[%clk 0:01:22]} 27. Ra1 {[%clk 0:00:18]}  Ne5 {[%clk 0:01:22]} 28. Re3 {[%clk 0:00:17]}  Ng6 {[%clk 0:00:56]} 29. Rxe7 {[%clk 0:00:16]}  Nxe7 {[%clk 0:00:57]} 30. Ra7 {[%clk 0:00:13]}  Kf8 {[%clk 0:00:57]} 31. Rb7 {[%clk 0:00:14]}  Ke8 {[%clk 0:00:55]} 32. Kf2 {[%clk 0:00:14]}  Kd8 {[%clk 0:00:54]} 33. Ke3 {[%clk 0:00:13]}  Rc7 {[%clk 0:00:53]} 34. Rb6 {[%clk 0:00:08]}  Kd7 {[%clk 0:00:48]} 35. Kd3 {[%clk 0:00:07]}  Ra7 {[%clk 0:00:46]} 36. Kc3 {[%clk 0:00:07]}  Rc7 {[%clk 0:00:35]} 37. g4 {[%clk 0:00:06]}  Ng6 {[%clk 0:00:34]} 38. Kb3 {[%clk 0:00:04]}  Nf4 {[%clk 0:00:31]} 39. h4 {[%clk 0:00:05]}  h5 {[%clk 0:00:30]} 40. g5 {[%clk 0:00:04]}  Ng2 {[%clk 0:00:31]} 41. Nf5 {[%clk 0:00:04]}  g6 {[%clk 0:00:30]} 42. Nd6 {[%clk 0:00:04]}  Nxh4 {[%clk 0:00:28]} 43. Nxf7 {[%clk 0:00:04]}  Nxf3 {[%clk 0:00:28]} 44. Rb8 {[%clk 0:00:04]}  Ke7 {[%clk 0:00:26]} 45. Nd6 {[%clk 0:00:04]}  Nxg5 {[%clk 0:00:25]} 46. Re8+ {[%clk 0:00:04]}  Kf6 {[%clk 0:00:25]} 47. Rf8+ {[%clk 0:00:04]}  Kg7 {[%clk 0:00:24]} 48. Rf2 {[%clk 0:00:02]}  Re7 {[%clk 0:00:24]} 49. b5 {[%clk 0:00:02]}  cxb5 {[%clk 0:00:24]} 50. c6 {[%clk 0:00:03]}  Ne4 {[%clk 0:00:23]} 51. Rg2 {[%clk 0:00:02]}  Nxd6 {[%clk 0:00:22]} 0-1


[Site "https://www.chess.com"]

[Event "Titled Tuesday Blitz November 22 Late 2022"]
[White "Oparin, Grigoriy"]
[Black "Vlassov, Nikolai"]
[WhiteFideId "24125890"]
[BlackFideId "4103360"]
[WhiteElo "2639"]
[BlackElo "2324"]
[Result "1-0"]
[Round "05"]
[TimeControl "180+1"]
[Date "2022.11.23"]
[WhiteClock "0:00:51"]
[BlackClock "0:00:01"]

1. e4 {[%clk 0:03:00]}  c5 {[%clk 0:02:57]} 2. b3 {[%clk 0:03:01]}  Nf6 {[%clk 0:02:56]} 3. Nf3 {[%clk 0:03:02]}  Nxe4 {[%clk 0:02:55]} 4. Ng1 {[%clk 0:03:03]}  d5 {[%clk 0:02:48]} 5. Bb2 {[%clk 0:03:01]}  Nc6 {[%clk 0:02:48]} 6. d3 {[%clk 0:03:00]}  Nd6 {[%clk 0:02:46]} 7. Nf3 {[%clk 0:03:00]}  Bg4 {[%clk 0:02:45]} 8. Be2 {[%clk 0:03:00]}  d4 {[%clk 0:02:36]} 9. Nbd2 {[%clk 0:03:00]}  Qd7 {[%clk 0:02:34]} 10. h3 {[%clk 0:03:00]}  Bxf3 {[%clk 0:02:31]} 11. Bxf3 {[%clk 0:03:01]}  Ne5 {[%clk 0:02:29]} 12. Be2 {[%clk 0:02:59]}  g6 {[%clk 0:02:26]} 13. a3 {[%clk 0:02:54]}  Bg7 {[%clk 0:02:26]} 14. O-O {[%clk 0:02:54]}  O-O {[%clk 0:02:25]} 15. Re1 {[%clk 0:02:54]}  Rac8 {[%clk 0:02:23]} 16. Nc4 {[%clk 0:02:53]}  Nexc4 {[%clk 0:02:12]} 17. bxc4 {[%clk 0:02:54]}  e6 {[%clk 0:01:59]} 18. Bf3 {[%clk 0:02:54]}  a6 {[%clk 0:01:55]} 19. a4 {[%clk 0:02:53]}  Bh6 {[%clk 0:01:41]} 20. g3 {[%clk 0:02:52]}  Rb8 {[%clk 0:01:36]} 21. Ba3 {[%clk 0:02:46]}  Rfc8 {[%clk 0:01:29]} 22. Bg2 {[%clk 0:02:38]}  b5 {[%clk 0:01:25]} 23. axb5 {[%clk 0:02:39]}  axb5 {[%clk 0:01:25]} 24. cxb5 {[%clk 0:02:40]}  Nxb5 {[%clk 0:01:25]} 25. Bb2 {[%clk 0:02:40]}  Nc3 {[%clk 0:01:19]} 26. Bxc3 {[%clk 0:02:39]}  dxc3 {[%clk 0:01:20]} 27. h4 {[%clk 0:02:36]}  Bd2 {[%clk 0:01:19]} 28. Re4 {[%clk 0:02:35]}  Rb4 {[%clk 0:01:13]} 29. h5 {[%clk 0:02:34]}  Rcb8 {[%clk 0:01:12]} 30. Kh2 {[%clk 0:02:25]}  Qb5 {[%clk 0:00:55]} 31. Qf3 {[%clk 0:02:12]}  Rxe4 {[%clk 0:00:35]} 32. Qxe4 {[%clk 0:02:13]}  Rf8 {[%clk 0:00:19]} 33. Ra7 {[%clk 0:02:07]}  c4 {[%clk 0:00:19]} 34. hxg6 {[%clk 0:02:05]}  Qh5+ {[%clk 0:00:18]} 35. Bh3 {[%clk 0:02:04]}  hxg6 {[%clk 0:00:16]} 36. Kg2 {[%clk 0:01:37]}  cxd3 {[%clk 0:00:16]} 37. Qxd3 {[%clk 0:01:38]}  Qg5 {[%clk 0:00:15]} 38. Rd7 {[%clk 0:01:31]}  Qf6 {[%clk 0:00:15]} 39. Qc4 {[%clk 0:01:25]}  Kg7 {[%clk 0:00:15]} 40. Bxe6 {[%clk 0:01:22]}  Be1 {[%clk 0:00:13]} 41. f4 {[%clk 0:01:20]}  Bd2 {[%clk 0:00:10]} 42. Bd5 {[%clk 0:01:19]}  Bc1 {[%clk 0:00:10]} 43. Qe4 {[%clk 0:01:16]}  Bd2 {[%clk 0:00:10]} 44. Bb3 {[%clk 0:01:14]}  Bc1 {[%clk 0:00:10]} 45. Kf3 {[%clk 0:01:14]}  Bd2 {[%clk 0:00:11]} 46. Qd4 {[%clk 0:01:13]}  Qxd4 {[%clk 0:00:09]} 47. Rxd4 {[%clk 0:01:14]}  g5 {[%clk 0:00:09]} 48. f5 {[%clk 0:01:01]}  Kf6 {[%clk 0:00:09]} 49. g4 {[%clk 0:01:01]}  Re8 {[%clk 0:00:08]} 50. Rd6+ {[%clk 0:01:00]}  Kg7 {[%clk 0:00:08]} 51. Rd7 {[%clk 0:01:00]}  Rf8 {[%clk 0:00:09]} 52. Bc4 {[%clk 0:01:00]}  Kf6 {[%clk 0:00:09]} 53. Ke4 {[%clk 0:00:57]}  Re8+ {[%clk 0:00:08]} 54. Kd3 {[%clk 0:00:56]}  Rf8 {[%clk 0:00:05]} 55. Kd4 {[%clk 0:00:56]}  Kg7 {[%clk 0:00:05]} 56. Rd6 {[%clk 0:00:53]}  f6 {[%clk 0:00:04]} 57. Rd7+ {[%clk 0:00:52]}  Kh6 {[%clk 0:00:04]} 58. Bf7 {[%clk 0:00:52]}  Rc8 {[%clk 0:00:02]} 59. Bg6 {[%clk 0:00:52]}  Rh8 {[%clk 0:00:02]} 60. Re7 {[%clk 0:00:51]}  Bf4 {[%clk 0:00:01]} 61. Kxc3 {[%clk 0:00:51]}  Be5+ {[%clk 0:00:01]} 62. Kd3 {[%clk 0:00:51]}  Bd6 {[%clk 0:00:01]} 63. Rd7 {[%clk 0:00:51]}  Be5 {[%clk 0:00:01]} 64. c4 {[%clk 0:00:51]}  Bf4 {[%clk 0:00:01]} 65. c5 {[%clk 0:00:51]} 1-0


[Site "https://www.chess.com"]

[Event "Titled Tuesday Blitz November 22 Late 2022"]
[White "Paiva, Henrique M A Albergaria"]
[Black "Sadhwani, Raunak"]
[WhiteFideId "1920995"]
[BlackFideId "35093487"]
[WhiteElo "1953"]
[BlackElo "2656"]
[Result "0-1"]
[Round "05"]
[TimeControl "180+1"]
[Date "2022.11.22"]
[WhiteClock "0:00:53"]
[BlackClock "0:01:37"]

1. Nf3 {[%clk 0:03:00]}  Nf6 {[%clk 0:02:59]} 2. d4 {[%clk 0:03:00]}  g6 {[%clk 0:02:58]} 3. c4 {[%clk 0:03:00]}  Bg7 {[%clk 0:02:58]} 4. Nc3 {[%clk 0:02:59]}  O-O {[%clk 0:02:59]} 5. e4 {[%clk 0:02:56]}  d6 {[%clk 0:02:59]} 6. Be2 {[%clk 0:02:54]}  Nbd7 {[%clk 0:03:00]} 7. O-O {[%clk 0:02:53]}  e5 {[%clk 0:03:00]} 8. Re1 {[%clk 0:02:53]}  h6 {[%clk 0:02:57]} 9. Bf1 {[%clk 0:02:51]}  Re8 {[%clk 0:02:49]} 10. dxe5 {[%clk 0:02:44]}  dxe5 {[%clk 0:02:50]} 11. Nd5 {[%clk 0:02:34]}  Nh7 {[%clk 0:02:40]} 12. Be3 {[%clk 0:02:31]}  c6 {[%clk 0:02:40]} 13. Nc3 {[%clk 0:02:31]}  Nhf6 {[%clk 0:02:40]} 14. h3 {[%clk 0:02:30]}  Bf8 {[%clk 0:02:34]} 15. Qd2 {[%clk 0:02:28]}  Kh7 {[%clk 0:02:34]} 16. Rad1 {[%clk 0:02:26]}  Qc7 {[%clk 0:02:35]} 17. a3 {[%clk 0:02:13]}  b6 {[%clk 0:02:31]} 18. b4 {[%clk 0:02:13]}  Bb7 {[%clk 0:02:30]} 19. Qc2 {[%clk 0:02:10]}  a5 {[%clk 0:02:28]} 20. Qb3 {[%clk 0:02:10]}  axb4 {[%clk 0:02:22]} 21. axb4 {[%clk 0:02:10]}  Kg7 {[%clk 0:02:15]} 22. Ra1 {[%clk 0:02:05]}  Rxa1 {[%clk 0:02:11]} 23. Rxa1 {[%clk 0:02:05]}  Ra8 {[%clk 0:02:12]} 24. Rxa8 {[%clk 0:02:04]}  Bxa8 {[%clk 0:02:13]} 25. Be2 {[%clk 0:02:01]}  c5 {[%clk 0:02:07]} 26. Nd5 {[%clk 0:01:49]}  Bxd5 {[%clk 0:02:01]} 27. exd5 {[%clk 0:01:49]}  cxb4 {[%clk 0:02:01]} 28. Nd2 {[%clk 0:01:41]}  Bc5 {[%clk 0:01:57]} 29. Kf1 {[%clk 0:01:33]}  Qa7 {[%clk 0:01:54]} 30. g3 {[%clk 0:01:21]}  Qa3 {[%clk 0:01:44]} 31. Bd1 {[%clk 0:01:00]}  Bxe3 {[%clk 0:01:42]} 32. fxe3 {[%clk 0:01:00]}  Nc5 {[%clk 0:01:42]} 33. Qxa3 {[%clk 0:00:53]}  bxa3 {[%clk 0:01:43]} 34. Bb3 {[%clk 0:00:53]}  Nfe4 {[%clk 0:01:37]} 0-1


[Site "https://www.chess.com"]

[Event "Titled Tuesday Blitz November 22 Late 2022"]
[White "Pakleza, Zbigniew"]
[Black "Averjanov, Alexey"]
[WhiteFideId "1119290"]
[BlackFideId "14109867"]
[WhiteElo "2411"]
[BlackElo "2609"]
[Result "1-0"]
[Round "05"]
[TimeControl "180+1"]
[Date "2022.11.23"]
[WhiteClock "0:01:17"]
[BlackClock "0:02:15"]

1. d4 {[%clk 0:03:00]}  d5 {[%clk 0:02:57]} 2. Bf4 {[%clk 0:03:00]}  Nf6 {[%clk 0:02:57]} 3. e3 {[%clk 0:03:01]}  e6 {[%clk 0:02:57]} 4. Nd2 {[%clk 0:03:01]}  c5 {[%clk 0:02:57]} 5. c3 {[%clk 0:03:01]}  Bd6 {[%clk 0:02:56]} 6. Bg3 {[%clk 0:03:01]}  Qc7 {[%clk 0:02:55]} 7. Ngf3 {[%clk 0:03:00]}  Nbd7 {[%clk 0:02:53]} 8. Be2 {[%clk 0:02:55]}  O-O {[%clk 0:02:53]} 9. c4 {[%clk 0:02:56]}  dxc4 {[%clk 0:02:43]} 10. Nxc4 {[%clk 0:02:56]}  Bxg3 {[%clk 0:02:43]} 11. hxg3 {[%clk 0:02:57]}  b6 {[%clk 0:02:41]} 12. Rc1 {[%clk 0:02:55]}  Bb7 {[%clk 0:02:41]} 13. O-O {[%clk 0:02:51]}  Rac8 {[%clk 0:02:41]} 14. dxc5 {[%clk 0:02:39]}  Nxc5 {[%clk 0:02:41]} 15. b4 {[%clk 0:01:55]}  Rfd8 {[%clk 0:02:38]} 16. Ncd2 {[%clk 0:01:35]}  Bxf3 {[%clk 0:02:31]} 17. Bxf3 {[%clk 0:01:36]}  Qd6 {[%clk 0:02:26]} 18. bxc5 {[%clk 0:01:32]}  Qxd2 {[%clk 0:02:26]} 19. Qxd2 {[%clk 0:01:33]}  Rxd2 {[%clk 0:02:26]} 20. cxb6 {[%clk 0:01:34]}  Rf8 {[%clk 0:02:16]} 21. bxa7 {[%clk 0:01:24]}  Rxa2 {[%clk 0:02:16]} 22. Ra1 {[%clk 0:01:16]}  Rxa1 {[%clk 0:02:15]} 23. Rxa1 {[%clk 0:01:17]} 1-0


[Site "https://www.chess.com"]

[Event "Titled Tuesday Blitz November 22 Late 2022"]
[White "Pan, Kevin"]
[Black "Arngrimsson, Dagur"]
[WhiteFideId "30915708"]
[BlackFideId "2301288"]
[WhiteElo "2233"]
[BlackElo "2286"]
[Result "1-0"]
[Round "05"]
[TimeControl "180+1"]
[Date "2022.11.23"]
[WhiteClock "0:01:17"]
[BlackClock "0:00:19"]

1. e4 {[%clk 0:02:54]}  c5 {[%clk 0:02:59]} 2. Nc3 {[%clk 0:02:52]}  g6 {[%clk 0:02:59]} 3. g3 {[%clk 0:02:53]}  Bg7 {[%clk 0:02:59]} 4. Bg2 {[%clk 0:02:53]}  e6 {[%clk 0:03:00]} 5. d3 {[%clk 0:02:54]}  Ne7 {[%clk 0:03:00]} 6. Be3 {[%clk 0:02:55]}  d6 {[%clk 0:02:56]} 7. Qd2 {[%clk 0:02:55]}  O-O {[%clk 0:02:52]} 8. Bh6 {[%clk 0:02:55]}  Nbc6 {[%clk 0:02:49]} 9. h4 {[%clk 0:02:55]}  Nd4 {[%clk 0:02:32]} 10. h5 {[%clk 0:02:45]}  f6 {[%clk 0:02:01]} 11. hxg6 {[%clk 0:02:38]}  hxg6 {[%clk 0:02:02]} 12. Nge2 {[%clk 0:02:33]}  g5 {[%clk 0:01:53]} 13. O-O-O {[%clk 0:02:28]}  b5 {[%clk 0:01:49]} 14. Nxd4 {[%clk 0:02:23]}  cxd4 {[%clk 0:01:50]} 15. Nxb5 {[%clk 0:02:24]}  Qb6 {[%clk 0:01:49]} 16. Na3 {[%clk 0:02:22]}  Ba6 {[%clk 0:01:46]} 17. Qe2 {[%clk 0:01:58]}  Rab8 {[%clk 0:01:44]} 18. b3 {[%clk 0:01:56]}  Qc5 {[%clk 0:01:41]} 19. Nc4 {[%clk 0:01:48]}  Bxc4 {[%clk 0:01:41]} 20. dxc4 {[%clk 0:01:48]}  Qe5 {[%clk 0:00:37]} 21. Qh5 {[%clk 0:01:36]}  d3 {[%clk 0:00:35]} 22. Bxg7 {[%clk 0:01:29]}  dxc2 {[%clk 0:00:31]} 23. Kxc2 {[%clk 0:01:22]}  Rfc8 {[%clk 0:00:20]} 24. Qh7+ {[%clk 0:01:16]}  Kf7 {[%clk 0:00:19]} 25. Bxf6+ {[%clk 0:01:16]}  Kxf6 {[%clk 0:00:19]} 26. Rh6+ {[%clk 0:01:16]}  Ng6 {[%clk 0:00:19]} 27. Rxg6# {[%clk 0:01:17]} 1-0


[Site "https://www.chess.com"]

[Event "Titled Tuesday Blitz November 22 Late 2022"]
[White "Paravyan, David"]
[Black "Yurovskykh, Oleksandr"]
[WhiteFideId "4194985"]
[BlackFideId "14134020"]
[WhiteElo "2546"]
[BlackElo "2265"]
[Result "1-0"]
[Round "05"]
[TimeControl "180+1"]
[Date "2022.11.23"]
[WhiteClock "0:00:07"]
[BlackClock "0:00:01"]

1. e4 {[%clk 0:03:00]}  e6 {[%clk 0:02:58]} 2. d4 {[%clk 0:03:01]}  d5 {[%clk 0:02:57]} 3. Nc3 {[%clk 0:03:01]}  dxe4 {[%clk 0:02:57]} 4. Nxe4 {[%clk 0:03:02]}  Bd7 {[%clk 0:02:58]} 5. Nf3 {[%clk 0:03:02]}  Bc6 {[%clk 0:02:58]} 6. Bd3 {[%clk 0:03:03]}  Nd7 {[%clk 0:02:58]} 7. c3 {[%clk 0:03:04]}  Ngf6 {[%clk 0:02:59]} 8. Nxf6+ {[%clk 0:03:04]}  Nxf6 {[%clk 0:02:58]} 9. O-O {[%clk 0:03:02]}  Bxf3 {[%clk 0:02:52]} 10. Qxf3 {[%clk 0:03:03]}  c6 {[%clk 0:02:53]} 11. Re1 {[%clk 0:02:59]}  Bd6 {[%clk 0:02:50]} 12. a4 {[%clk 0:02:54]}  a5 {[%clk 0:02:49]} 13. Bg5 {[%clk 0:02:50]}  h6 {[%clk 0:02:47]} 14. Bd2 {[%clk 0:02:51]}  Bc7 {[%clk 0:02:37]} 15. Rad1 {[%clk 0:02:50]}  Qd5 {[%clk 0:02:36]} 16. Qh3 {[%clk 0:02:44]}  Qh5 {[%clk 0:02:31]} 17. Qxh5 {[%clk 0:02:42]}  Nxh5 {[%clk 0:02:32]} 18. g3 {[%clk 0:02:33]}  Nf6 {[%clk 0:02:31]} 19. Kg2 {[%clk 0:02:29]}  O-O {[%clk 0:02:20]} 20. Bc1 {[%clk 0:02:26]}  Rfd8 {[%clk 0:02:19]} 21. h3 {[%clk 0:02:15]}  Rd7 {[%clk 0:02:18]} 22. f4 {[%clk 0:02:12]}  g6 {[%clk 0:02:14]} 23. Kf3 {[%clk 0:02:11]}  h5 {[%clk 0:02:14]} 24. g4 {[%clk 0:02:10]}  hxg4+ {[%clk 0:02:15]} 25. hxg4 {[%clk 0:02:11]}  Kg7 {[%clk 0:02:05]} 26. f5 {[%clk 0:02:07]}  exf5 {[%clk 0:02:06]} 27. gxf5 {[%clk 0:02:08]}  Rh8 {[%clk 0:02:06]} 28. Rh1 {[%clk 0:02:07]}  Rdd8 {[%clk 0:02:01]} 29. Rdg1 {[%clk 0:01:56]}  Rxh1 {[%clk 0:01:18]} 30. Rxh1 {[%clk 0:01:57]}  Ng8 {[%clk 0:01:18]} 31. Rg1 {[%clk 0:01:49]}  Ne7 {[%clk 0:01:17]} 32. b3 {[%clk 0:01:30]}  Bd6 {[%clk 0:00:56]} 33. fxg6 {[%clk 0:01:02]}  Nxg6 {[%clk 0:00:54]} 34. Rh1 {[%clk 0:00:56]}  Be7 {[%clk 0:00:34]} 35. Bh6+ {[%clk 0:00:55]}  Kg8 {[%clk 0:00:34]} 36. Be4 {[%clk 0:00:52]}  c5 {[%clk 0:00:31]} 37. Be3 {[%clk 0:00:51]}  b6 {[%clk 0:00:26]} 38. Rh5 {[%clk 0:00:43]}  Rc8 {[%clk 0:00:22]} 39. Bd5 {[%clk 0:00:32]}  cxd4 {[%clk 0:00:20]} 40. Bxd4 {[%clk 0:00:32]}  Bc5 {[%clk 0:00:18]} 41. Bf6 {[%clk 0:00:23]}  Be7 {[%clk 0:00:15]} 42. Bd4 {[%clk 0:00:21]}  Bc5 {[%clk 0:00:15]} 43. Rh6 {[%clk 0:00:04]}  Bxd4 {[%clk 0:00:13]} 44. Rxg6+ {[%clk 0:00:04]}  Bg7 {[%clk 0:00:14]} 45. c4 {[%clk 0:00:03]}  Rb8 {[%clk 0:00:12]} 46. Ke4 {[%clk 0:00:03]}  Kf8 {[%clk 0:00:12]} 47. Rc6 {[%clk 0:00:03]}  Bc3 {[%clk 0:00:11]} 48. Rc7 {[%clk 0:00:02]}  f6 {[%clk 0:00:10]} 49. Kf5 {[%clk 0:00:03]}  Rd8 {[%clk 0:00:07]} 50. Rf7+ {[%clk 0:00:03]}  Ke8 {[%clk 0:00:07]} 51. Rh7 {[%clk 0:00:03]}  Bb4 {[%clk 0:00:07]} 52. Kxf6 {[%clk 0:00:02]}  Rd6+ {[%clk 0:00:07]} 53. Be6 {[%clk 0:00:03]}  Kd8 {[%clk 0:00:07]} 54. Ke5 {[%clk 0:00:03]}  Rd2 {[%clk 0:00:06]} 55. Rh8+ {[%clk 0:00:02]}  Kc7 {[%clk 0:00:07]} 56. Rh7+ {[%clk 0:00:03]}  Kb8 {[%clk 0:00:07]} 57. Bd5 {[%clk 0:00:03]}  Bc5 {[%clk 0:00:07]} 58. Rb7+ {[%clk 0:00:03]}  Kc8 {[%clk 0:00:08]} 59. Ra7 {[%clk 0:00:03]}  Rd3 {[%clk 0:00:08]} 60. Ra8+ {[%clk 0:00:02]}  Kc7 {[%clk 0:00:08]} 61. Ra7+ {[%clk 0:00:03]}  Kc8 {[%clk 0:00:09]} 62. b4 {[%clk 0:00:02]}  axb4 {[%clk 0:00:08]} 63. a5 {[%clk 0:00:02]}  bxa5 {[%clk 0:00:09]} 64. Rxa5 {[%clk 0:00:02]}  Bd4+ {[%clk 0:00:09]} 65. Ke4 {[%clk 0:00:02]}  Rd2 {[%clk 0:00:09]} 66. Rb5 {[%clk 0:00:02]}  Bc3 {[%clk 0:00:10]} 67. c5 {[%clk 0:00:03]}  Re2+ {[%clk 0:00:09]} 68. Kd3 {[%clk 0:00:02]}  Rd2+ {[%clk 0:00:09]} 69. Ke4 {[%clk 0:00:03]}  Re2+ {[%clk 0:00:05]} 70. Kf4 {[%clk 0:00:04]}  Re5 {[%clk 0:00:05]} 71. c6 {[%clk 0:00:02]}  Kc7 {[%clk 0:00:05]} 72. Rb7+ {[%clk 0:00:02]}  Kc8 {[%clk 0:00:04]} 73. Be4 {[%clk 0:00:03]}  Rh5 {[%clk 0:00:04]} 74. Bf5+ {[%clk 0:00:03]}  Rxf5+ {[%clk 0:00:04]} 75. Kxf5 {[%clk 0:00:04]}  b3 {[%clk 0:00:04]} 76. Rxb3 {[%clk 0:00:04]}  Be1 {[%clk 0:00:04]} 77. Rb7 {[%clk 0:00:04]}  Bg3 {[%clk 0:00:04]} 78. Ke4 {[%clk 0:00:05]}  Bh2 {[%clk 0:00:05]} 79. Kd5 {[%clk 0:00:06]}  Bg3 {[%clk 0:00:05]} 80. Rb1 {[%clk 0:00:06]}  Bf4 {[%clk 0:00:05]} 81. Rf1 {[%clk 0:00:06]}  Bh2 {[%clk 0:00:06]} 82. Rf8+ {[%clk 0:00:07]}  Kc7 {[%clk 0:00:06]} 83. Rf7+ {[%clk 0:00:08]}  Kc8 {[%clk 0:00:06]} 84. Kc5 {[%clk 0:00:08]}  Bg1+ {[%clk 0:00:06]} 85. Kb5 {[%clk 0:00:09]}  Be3 {[%clk 0:00:06]} 86. Re7 {[%clk 0:00:09]}  Bf2 {[%clk 0:00:07]} 87. Rg7 {[%clk 0:00:08]}  Be3 {[%clk 0:00:07]} 88. Kc4 {[%clk 0:00:08]}  Bf2 {[%clk 0:00:08]} 89. Kd5 {[%clk 0:00:07]}  Be3 {[%clk 0:00:07]} 90. c7 {[%clk 0:00:08]}  Bf4 {[%clk 0:00:01]} 91. Kc6 {[%clk 0:00:07]} 1-0


[Site "https://www.chess.com"]

[Event "Titled Tuesday Blitz November 22 Late 2022"]
[White "Petrovic, Aleksa"]
[Black "Tanenbaum, Zachary"]
[WhiteFideId "967629"]
[BlackFideId "2060850"]
[WhiteElo "2224"]
[BlackElo "2175"]
[Result "1-0"]
[Round "05"]
[TimeControl "180+1"]
[Date "2022.11.23"]
[WhiteClock "0:00:17"]
[BlackClock "0:00:18"]

1. d4 {[%clk 0:03:00]}  d5 {[%clk 0:02:59]} 2. c4 {[%clk 0:03:00]}  dxc4 {[%clk 0:03:00]} 3. e3 {[%clk 0:02:59]}  e5 {[%clk 0:03:00]} 4. Bxc4 {[%clk 0:02:59]}  Nc6 {[%clk 0:03:01]} 5. Nf3 {[%clk 0:02:56]}  e4 {[%clk 0:03:00]} 6. Nfd2 {[%clk 0:02:51]}  Qg5 {[%clk 0:03:01]} 7. Nxe4 {[%clk 0:02:41]}  Qxg2 {[%clk 0:03:00]} 8. Ng3 {[%clk 0:02:38]}  Nf6 {[%clk 0:02:49]} 9. Nc3 {[%clk 0:02:37]}  Bd6 {[%clk 0:02:42]} 10. Bf1 {[%clk 0:02:32]}  Bg4 {[%clk 0:02:17]} 11. Bxg2 {[%clk 0:02:30]}  Bxd1 {[%clk 0:02:17]} 12. Kxd1 {[%clk 0:02:31]}  O-O-O {[%clk 0:02:11]} 13. Bxc6 {[%clk 0:02:23]}  bxc6 {[%clk 0:02:12]} 14. Nge4 {[%clk 0:02:16]}  Be7 {[%clk 0:02:01]} 15. Nxf6 {[%clk 0:02:15]}  Bxf6 {[%clk 0:02:02]} 16. Ke2 {[%clk 0:02:12]}  c5 {[%clk 0:02:00]} 17. dxc5 {[%clk 0:02:09]}  Bxc3 {[%clk 0:02:00]} 18. bxc3 {[%clk 0:02:09]}  Kb7 {[%clk 0:01:52]} 19. Rd1 {[%clk 0:02:07]}  Kc6 {[%clk 0:01:51]} 20. Ba3 {[%clk 0:02:05]}  f6 {[%clk 0:01:48]} 21. Rxd8 {[%clk 0:02:05]}  Rxd8 {[%clk 0:01:48]} 22. Rg1 {[%clk 0:02:03]}  Rd7 {[%clk 0:01:47]} 23. Rg4 {[%clk 0:02:02]}  g6 {[%clk 0:01:46]} 24. Ra4 {[%clk 0:02:02]}  Kb7 {[%clk 0:01:42]} 25. c6+ {[%clk 0:02:01]}  Kxc6 {[%clk 0:01:42]} 26. Rxa7 {[%clk 0:02:01]}  Rd5 {[%clk 0:01:41]} 27. Ra6+ {[%clk 0:01:58]}  Kb7 {[%clk 0:01:40]} 28. Rxf6 {[%clk 0:01:59]}  Rh5 {[%clk 0:01:40]} 29. Rf7 {[%clk 0:01:57]}  Kc6 {[%clk 0:01:40]} 30. Bb4 {[%clk 0:01:48]}  Rxh2 {[%clk 0:01:40]} 31. a4 {[%clk 0:01:48]}  h5 {[%clk 0:01:34]} 32. a5 {[%clk 0:01:47]}  h4 {[%clk 0:01:35]} 33. a6 {[%clk 0:01:45]}  Kb6 {[%clk 0:01:35]} 34. a7 {[%clk 0:01:39]}  Kxa7 {[%clk 0:01:35]} 35. Rxc7+ {[%clk 0:01:39]}  Kb6 {[%clk 0:01:35]} 36. Rg7 {[%clk 0:01:39]}  Rg2 {[%clk 0:01:35]} 37. Be7 {[%clk 0:01:33]}  g5 {[%clk 0:01:27]} 38. Rxg5 {[%clk 0:01:26]}  h3 {[%clk 0:01:27]} 39. Rh5 {[%clk 0:01:21]}  h2 {[%clk 0:01:27]} 40. Bd6 {[%clk 0:01:19]}  Kc6 {[%clk 0:01:26]} 41. Bxh2 {[%clk 0:01:19]}  Rg6 {[%clk 0:01:25]} 42. Bf4 {[%clk 0:01:18]}  Kb7 {[%clk 0:01:25]} 43. Rh7+ {[%clk 0:01:17]}  Ka8 {[%clk 0:01:24]} 44. Bh6 {[%clk 0:01:12]}  Rc6 {[%clk 0:01:23]} 45. e4 {[%clk 0:01:09]}  Rxc3 {[%clk 0:01:22]} 46. e5 {[%clk 0:01:09]}  Rc5 {[%clk 0:01:20]} 47. Ra7+ {[%clk 0:00:58]}  Kb8 {[%clk 0:01:19]} 48. Re7 {[%clk 0:00:58]}  Ka8 {[%clk 0:01:16]} 49. e6 {[%clk 0:00:56]}  Re5+ {[%clk 0:01:15]} 50. Kf1 {[%clk 0:00:55]}  Rh5 {[%clk 0:01:13]} 51. Re8+ {[%clk 0:00:51]}  Kb7 {[%clk 0:01:13]} 52. e7 {[%clk 0:00:50]}  Re5 {[%clk 0:01:06]} 53. Rb8+ {[%clk 0:00:49]}  Kc7 {[%clk 0:00:41]} 54. Bf4 {[%clk 0:00:47]}  Kd6 {[%clk 0:00:37]} 55. e8=Q {[%clk 0:00:42]}  Kc5 {[%clk 0:00:31]} 56. Rb5+ {[%clk 0:00:41]}  Kc4 {[%clk 0:00:29]} 57. Qc6+ {[%clk 0:00:41]}  Kd3 {[%clk 0:00:26]} 58. Rb3+ {[%clk 0:00:38]}  Kd4 {[%clk 0:00:24]} 59. Qc3+ {[%clk 0:00:34]}  Kd5 {[%clk 0:00:23]} 60. Qd3+ {[%clk 0:00:33]}  Ke6 {[%clk 0:00:22]} 61. Qg6+ {[%clk 0:00:33]}  Kd5 {[%clk 0:00:22]} 62. Rd3+ {[%clk 0:00:33]}  Kc5 {[%clk 0:00:21]} 63. Qd6+ {[%clk 0:00:33]}  Kc4 {[%clk 0:00:20]} 64. Rd4+ {[%clk 0:00:28]}  Kc3 {[%clk 0:00:19]} 65. Qb4+ {[%clk 0:00:28]}  Kc2 {[%clk 0:00:20]} 66. Rd2+ {[%clk 0:00:24]}  Kc1 {[%clk 0:00:20]} 67. Re2+ {[%clk 0:00:17]}  Kd1 {[%clk 0:00:18]} 68. Qe1# {[%clk 0:00:17]} 1-0


[Site "https://www.chess.com"]